lending/lending_fUSD_20240705
["ID","MTS","AMOUNT","RATE_DAILY","PERIOD"]
[331269193,1720169295328,-746.17,0.00054794,120]
[331269194,1720169295372,-746.17,0.00054794,120]
[331269195,1720169295414,-500.0,0.00054794,120]
[331269196,1720169295456,-746.17,0.00054794,120]
[331269197,1720169295500,-500.0,0.00054794,120]
[331269198,1720169295814,-746.17,0.00054794,120]
[331269199,1720169295857,-500.0,0.00054794,120]
[331269200,1720169295902,-500.0,0.00054794,120]
[331269201,1720169295944,-746.17,0.00054794,120]
[331269202,1720169295987,-746.17,0.00054794,120]
[331269203,1720169296031,-541.12968016,0.00054794,120]
[331269204,1720169296072,-500.0,0.00054794,120]
[331269205,1720169296114,-746.17,0.00054794,120]
[331269206,1720169296157,-500.0,0.00054794,120]
[331269207,1720169296204,-1000.0,0.00054794,120]
[331269208,1720169296251,-746.17,0.00054794,120]
[331269209,1720169296505,-271.62420042,0.00054794,120]
[331269210,1720169296550,-760.50025387,0.00054794,120]
[331269211,1720169296593,-746.17,0.00054794,120]
[331269212,1720169296636,-500.0,0.00054794,120]
[331269213,1720169296681,-746.17,0.00054794,120]
[331269214,1720169296727,-500.0,0.00054794,120]
[331269215,1720169296770,-746.17,0.00054794,120]
[331269216,1720169296813,-500.0,0.00054794,120]
[331269217,1720169296856,-746.17,0.00054794,120]
[331269218,1720169296904,-500.0,0.00054794,120]
[331269219,1720169296950,-746.17,0.00054794,120]
[331269220,1720169296994,-500.0,0.00054794,120]
[331269221,1720169297035,-746.17,0.00054794,120]
[331269222,1720169297077,-500.0,0.00054794,120]
[331269223,1720169297119,-500.0,0.00054794,120]
[331269224,1720169297163,-746.31385951,0.00054794,120]
[331269225,1720169297209,-500.0,0.00054794,120]
[331269226,1720169297254,-276.7585192,0.00054794,120]
[331269227,1720169297299,-500.0,0.00054794,120]
[331269228,1720169297343,-500.0,0.00054794,120]
[331269229,1720169297387,-500.0,0.00054794,120]
[331269230,1720169297431,-500.0,0.00054794,120]
[331269231,1720169297473,-500.0,0.00054794,120]
[331269232,1720169297517,-500.0,0.00054794,120]
[331269233,1720169297559,-500.0,0.00054794,120]
[331269234,1720169297603,-500.0,0.00054794,120]
[331269235,1720169297647,-500.0,0.00054794,120]
[331269236,1720169297692,-500.0,0.00054794,120]
[331269237,1720169297736,-500.0,0.00054794,120]
[331269238,1720169297782,-500.0,0.00054794,120]
[331269239,1720169297827,-500.0,0.00054794,120]
[331269240,1720169297874,-500.0,0.00054794,120]
[331269241,1720169297919,-500.0,0.00054794,120]
[331269242,1720169297962,-500.0,0.00054794,120]
[331269243,1720169298004,-500.0,0.00054794,120]
[331269244,1720169298048,-500.0,0.00054794,120]
[331269245,1720169298092,-500.0,0.00054794,120]
[331269246,1720169298135,-518.46,0.00054794,120]
[331269247,1720169298177,-500.0,0.00054794,120]
[331269248,1720169298224,-456.16503536,0.00054794,120]
[331269249,1720169298271,-500.0,0.00054794,120]
[331269250,1720169298316,-500.0,0.00054794,120]
[331269251,1720169298360,-572.62866409,0.00054794,120]
[331269252,1720169298404,-505.17404619,0.00054794,120]
[331269253,1720169298450,-458.9966537,0.00054794,120]
[331269254,1720169298498,-505.0462251,0.00054794,120]
[331269255,1720169298544,-500.0,0.00054794,120]
[331269256,1720169298591,-500.0,0.00054794,120]
[331269257,1720169298635,-500.0,0.00054794,120]
[331269258,1720169298681,-500.0,0.00054794,120]
[331269259,1720169298732,-500.0,0.00054794,120]
[331269260,1720169298778,-505.52593611,0.00054794,120]
[331269261,1720169298824,-500.0,0.00054794,120]
[331269262,1720169298868,-213.07136189,0.00054794,120]
[331269263,1720169298911,-502.57699262,0.00054794,120]
[331269264,1720169298952,-504.63982841,0.00054794,120]
[331269265,1720169298995,-500.0,0.00054794,120]
[331269266,1720169299038,-500.0,0.00054794,120]
[331269267,1720169299080,-500.0,0.00054794,120]
[331269268,1720169299123,-500.0,0.00054794,120]
[331269269,1720169299169,-500.0,0.00054794,120]
[331269270,1720169299213,-500.0,0.00054794,120]
[331269271,1720169299256,-500.0,0.00054794,120]
[331269272,1720169299300,-500.0,0.00054794,120]
[331269273,1720169299344,-500.0,0.00054794,120]
[331269274,1720169299640,-500.0,0.00054794,120]
[331269275,1720169299687,-541.32113649,0.00054794,120]
[331269276,1720169299730,-205.50754196,0.00054794,120]
[331269277,1720169299776,-512.35709154,0.00054794,120]
[331269278,1720169299819,-500.0,0.00054794,120]
[331269279,1720169299862,-500.0,0.00054794,120]
[331269280,1720169299904,-500.0,0.00054794,120]
[331269281,1720169299948,-565.81387912,0.00054794,120]
[331269282,1720169299995,-500.0,0.00054794,120]
[331269283,1720169300037,-500.0,0.00054794,120]
[331269284,1720169300081,-500.0,0.00054794,120]
[331269285,1720169300124,-500.0,0.00054794,120]
[331269286,1720169300171,-500.0,0.00054794,120]
[331269287,1720169300214,-648.83407313,0.00054794,120]
[331269288,1720169300258,-500.0,0.00054794,120]
[331269289,1720169300300,-500.0,0.00054794,120]
[331269290,1720169300343,-500.0,0.00054794,120]
[331269291,1720169300386,-336.46951415,0.00054794,120]
[331269292,1720169305048,158.75,0.00011177,2]
[331269293,1720169305926,-381.39233305,0.0003,30]
[331269294,1720169306239,-898.48231245,0.0003886,30]
[331269295,1720169306508,-261.8190365,0.0003886,30]
[331269296,1720169306556,-2577.48427494,0.00040012,30]
[331269297,1720169306596,-520.16469187,0.00040065,30]
[331269298,1720169306638,-150.26422165,0.00040201,30]
[331269299,1720169306679,-150.26422165,0.00040286,30]
[331269300,1720169306721,-156.62348718,0.00040387,30]
[331269301,1720169306765,-166.66666666,0.00040526,30]
[331269302,1720169306809,-223.5598761,0.00040557,30]
[331269303,1720169306856,-520.16469187,0.00040804,30]
[331269304,1720169306901,-2577.48427494,0.0004083,30]
[331269305,1720169306945,-1192.05112783,0.00040852,30]
[331269306,1720169306988,-155.9121554,0.00040944,30]
[331269307,1720169307042,-175.11443247,0.00041173,30]
[331269308,1720169307084,-175.11443247,0.0004133,30]
[331269309,1720169307127,-223.5598761,0.00041336,30]
[331269310,1720169307170,-406.9941911,0.00041345,30]
[331269311,1720169307222,-150.26422165,0.00041356,30]
[331269312,1720169307475,-175.11443247,0.00041378,30]
[331269313,1720169307518,-152.85418815,0.00041381,30]
[331269314,1720169307560,-155.9121554,0.0004163,30]
[331269315,1720169307603,-175.11443247,0.00041671,30]
[331269316,1720169307647,-520.16469187,0.00041671,30]
[331269317,1720169307689,-173.8234745,0.00041754,30]
[331269318,1720169307734,-161.37617335,0.00041757,30]
[331269319,1720169307781,-156.62348718,0.00041852,30]
[331269320,1720169307823,-1192.05112783,0.00041915,30]
[331269321,1720169307870,-2577.48427494,0.0004197,30]
[331269322,1720169307914,-1192.05112783,0.00042088,30]
[331269323,1720169307957,-155.9121554,0.00042106,30]
[331269324,1720169308005,-175.11443247,0.00042133,30]
[331269325,1720169308052,-175.11443247,0.00042241,30]
[331269326,1720169308098,-319.20628367,0.00042415,30]
[331269327,1720169308142,-156.62348718,0.00042418,30]
[331269328,1720169308185,-2577.48427494,0.00042504,30]
[331269329,1720169308227,-520.16469187,0.00042874,30]
[331269330,1720169308270,-406.9941911,0.00042944,30]
[331269331,1720169308543,-520.16469187,0.00043053,30]
[331269332,1720169308585,-175.11443247,0.00043074,30]
[331269333,1720169308627,-406.9941911,0.00043158,30]
[331269334,1720169308668,-520.16469187,0.0004336,30]
[331269335,1720169308711,-150.26422165,0.00043637,30]
[331269336,1720169308761,-1192.05112783,0.00043842,30]
[331269337,1720169308810,-156.62348718,0.00043845,30]
[331269338,1720169309085,-406.9941911,0.00043997,30]
[331269339,1720169309128,-175.11443247,0.00044192,30]
[331269340,1720169309175,-520.16469187,0.0004444,30]
[331269341,1720169309219,-155.9121554,0.00044487,30]
[331269342,1720169309263,-2577.48427494,0.00045011,30]
[331269343,1720169309306,-150.26422165,0.0004502,30]
[331269344,1720169309351,-406.9941911,0.00045158,30]
[331269345,1720169309399,-1192.05112783,0.00045247,30]
[331269346,1720169309443,-175.11443247,0.00045333,30]
[331269347,1720169309489,-406.9941911,0.00045376,30]
[331269348,1720169309539,-150.26422165,0.00045397,30]
[331269349,1720169309586,-406.9941911,0.00045595,30]
[331269350,1720169309631,-2577.48427494,0.00045644,30]
[331269351,1720169309676,-2577.48427494,0.00045944,30]
[331269352,1720169309724,-150.26422165,0.0004608,30]
[331269353,1720169309771,-152.85418816,0.0004621,30]
[331269354,1720169309818,-406.9941911,0.00046322,30]
[331269355,1720169309863,-223.5598761,0.0004644,30]
[331269356,1720169310595,-155.9121554,0.00046725,30]
[331269357,1720169310638,-223.5598761,0.00046942,30]
[331269358,1720169310679,-162.33645168,0.00046957,30]
[331269359,1720169310721,-166.66666666,0.00046967,30]
[331269360,1720169310765,-150.26422165,0.00047308,30]
[331269361,1720169310809,-175.11443247,0.0004739,30]
[331269362,1720169311079,-166.6666667,0.00047414,30]
[331269363,1720169311123,-150.26422165,0.0004754,30]
[331269364,1720169311164,-520.16469187,0.00047552,30]
[331269365,1720169311393,-162.33645168,0.00047558,30]
[331269366,1720169311440,-2577.48427494,0.00047717,30]
[331269367,1720169311492,-162.33645168,0.00047761,30]
[331269368,1720169311548,-2577.48427494,0.00047875,30]
[331269369,1720169311605,-150.0,0.00047914,30]
[331269370,1720169311660,-223.5598761,0.00047927,30]
[331269371,1720169311718,-2577.48427494,0.00047989,30]
[331269372,1720169311767,-319.20628367,0.00048318,30]
[331269373,1720169311812,-520.16469187,0.00048422,30]
[331269374,1720169311859,-223.5598761,0.00048618,30]
[331269375,1720169311900,-150.0,0.00048635,30]
[331269376,1720169311944,-166.66666666,0.00048688,30]
[331269377,1720169311987,-2577.48427494,0.00048829,30]
[331269378,1720169312035,-1192.05112783,0.00048919,30]
[331269379,1720169312082,-150.26422165,0.00048953,30]
[331269380,1720169312127,-166.66666666,0.00049223,30]
[331269381,1720169312174,-406.9941911,0.00049235,30]
[331269382,1720169312223,-1192.05112783,0.00049384,30]
[331269383,1720169312269,-162.33645168,0.00049432,30]
[331269384,1720169312316,-1192.05112783,0.00049476,30]
[331269385,1720169312362,-223.5598761,0.0004975,30]
[331269386,1720169312410,-175.11443247,0.00049823,30]
[331269387,1720169312452,-155.9121554,0.00049896,30]
[331269388,1720169312505,-1192.05112783,0.00049951,30]
[331269389,1720169312551,-520.16469187,0.00050021,60]
[331269390,1720169312904,-319.20628367,0.000502,60]
[331269391,1720169312950,-406.9941911,0.0005023,60]
[331269392,1720169312994,-1192.05112783,0.00050247,60]
[331269393,1720169313041,-223.5598761,0.00050248,60]
[331269394,1720169313314,-175.11443247,0.00050455,60]
[331269395,1720169313359,-406.9941911,0.00050517,60]
[331269396,1720169313403,-162.33645168,0.00050603,60]
[331269397,1720169313449,-319.20628367,0.00050635,60]
[331269398,1720169313493,-166.66666666,0.00050663,60]
[331269399,1720169313541,-2577.48427494,0.00050721,60]
[331269400,1720169313800,-223.5598761,0.00050743,60]
[331269401,1720169313845,-1192.05112784,0.0005078,60]
[331269402,1720169313889,-319.20628367,0.00050952,60]
[331269403,1720169313931,-223.5598761,0.00050995,60]
[331269404,1720169313976,-175.11443247,0.00051039,60]
[331269405,1720169314018,-520.16469187,0.000511,60]
[331269406,1720169314550,-520.16469187,0.00051164,60]
[331269407,1720169315056,-150.26422167,0.0005118,60]
[331269408,1720169315726,-162.33645168,0.0005143,60]
[331269409,1720169316139,-406.9941911,0.00051502,60]
[331269410,1720169316762,-156.62348718,0.00051556,60]
[331269411,1720169317234,-223.55987638,0.00051582,60]
[331269412,1720169317281,-175.11443247,0.00051897,60]
[331269413,1720169317323,-319.20628367,0.00052238,60]
[331269414,1720169317367,-319.20628376,0.00052258,60]
[331269415,1720169317408,-150.0,0.0005229,60]
[331269416,1720169317450,-2577.48427494,0.000523,60]
[331269417,1720169317494,-406.99419138,0.00052315,60]
[331269418,1720169317540,-2577.48427494,0.00052688,60]
[331269419,1720169317582,-520.16469187,0.00053021,60]
[331269420,1720169317625,-150.0,0.00053158,30]
[331269421,1720169317668,-156.62348718,0.00053454,60]
[331269422,1720169317716,-155.9121554,0.00053537,60]
[331269423,1720169317763,-155.91215557,0.00053602,60]
[331269424,1720169318200,-156.52001134,0.00053644,60]
[331269425,1720169318441,-175.11443262,0.00053773,60]
[331269426,1720169318498,-156.6234873,0.00053835,60]
[331269427,1720169318545,-2577.48427502,0.00053972,60]
[331269428,1720169318592,-166.6666667,0.00054022,60]
[331269429,1720169318639,-162.33645175,0.00054586,60]
[331269430,1720169318684,-520.16469191,0.00054674,60]
[331269431,1720169318729,-150.0,0.00054784,60]
[331269432,1720169318774,-163.53048585,0.00054794,120]
[331269433,1720169318938,-500.0,0.00054794,120]
[331269434,1720169318982,-513.67667639,0.00054794,120]
[331269435,1720169319025,-456.82,0.00054794,120]
[331269436,1720169319071,-500.0,0.00054794,120]
[331269437,1720169319116,-500.0,0.00054794,120]
[331269438,1720169319165,-500.0,0.00054794,120]
[331269439,1720169319721,-500.0,0.00054794,120]
[331269440,1720169319952,-500.0,0.00054794,120]
[331269441,1720169320202,-500.0,0.00054794,120]
[331269442,1720169320269,-500.0,0.00054794,120]
[331269443,1720169320323,-516.04794449,0.00054794,120]
[331269444,1720169320374,-571.56946715,0.00054794,120]
[331269445,1720169320423,-500.0,0.00054794,120]
[331269446,1720169320471,-500.0,0.00054794,120]
[331269447,1720169320518,-500.0,0.00054794,120]
[331269448,1720169320565,-500.0,0.00054794,120]
[331269449,1720169320614,-619.99455347,0.00054794,120]
[331269450,1720169320663,-500.0,0.00054794,120]
[331269451,1720169320709,-551.26983278,0.00054794,120]
[331269452,1720169320769,-500.0,0.00054794,30]
[331269453,1720169320818,-500.0,0.00054794,30]
[331269454,1720169320867,-165.79330834,0.00054794,30]
[331269455,1720169320914,-500.0,0.00054794,120]
[331269456,1720169320959,-500.0,0.00054794,120]
[331269457,1720169321009,-500.0,0.00054794,120]
[331269458,1720169321054,-500.0,0.00054794,120]
[331269459,1720169321099,-500.0,0.00054794,120]
[331269460,1720169321142,-500.0,0.00054794,120]
[331269461,1720169321195,-252.89802883,0.00054794,120]
[331269462,1720169321255,-355.95741445,0.00054794,120]
[331269463,1720169321300,-500.0,0.00054794,120]
[331269464,1720169321349,-505.81986898,0.00054794,120]
[331269465,1720169321396,-500.0,0.00054794,120]
[331269466,1720169321442,-500.0,0.00054794,120]
[331269467,1720169321489,-500.0,0.00054794,120]
[331269468,1720169321537,-500.0,0.00054794,120]
[331269469,1720169321582,-531.10844086,0.00054794,120]
[331269470,1720169321630,-500.0,0.00054794,120]
[331269471,1720169321674,-500.0,0.00054794,120]
[331269472,1720169321716,-500.0,0.00054794,120]
[331269473,1720169321769,-269.35991078,0.00054794,120]
[331269474,1720169321821,-500.0,0.00054794,120]
[331269475,1720169321874,-557.11734085,0.00054794,120]
[331269476,1720169321924,-419.04695566,0.00054794,120]
[331269477,1720169321972,-673.98,0.00054794,120]
[331269478,1720169322020,-673.98,0.00054794,120]
[331269479,1720169322071,-673.98,0.00054794,120]
[331269480,1720169322119,-673.98,0.00054794,120]
[331269481,1720169322170,-673.98,0.00054794,120]
[331269482,1720169322223,-673.98,0.00054794,120]
[331269483,1720169322275,-673.98,0.00054794,120]
[331269484,1720169322327,-673.98,0.00054794,120]
[331269485,1720169322378,-673.98,0.00054794,120]
[331269486,1720169322429,-673.98,0.00054794,120]
[331269487,1720169322478,-673.98,0.00054794,120]
[331269488,1720169322528,-500.0,0.00054794,120]
[331269489,1720169322578,-673.98,0.00054794,120]
[331269490,1720169322633,-556.51333202,0.00054794,120]
[331269491,1720169322685,-500.0,0.00054794,120]
[331269492,1720169322738,-673.98,0.00054794,120]
[331269493,1720169322789,-500.0,0.00054794,120]
[331269494,1720169322841,-500.0,0.00054794,120]
[331269495,1720169322892,-673.98,0.00054794,120]
[331269496,1720169322943,-500.0,0.00054794,120]
[331269497,1720169322995,-673.98,0.00054794,120]
[331269498,1720169323069,-500.0,0.00054794,120]
[331269499,1720169323118,-500.0,0.00054794,120]
[331269500,1720169323171,-673.98,0.00054794,120]
[331269501,1720169323232,-500.0,0.00054794,120]
[331269502,1720169323282,-500.0,0.00054794,120]
[331269503,1720169323370,-500.0,0.00054794,120]
[331269504,1720169323426,-500.0,0.00054794,120]
[331269505,1720169323477,-673.98,0.00054794,120]
[331269506,1720169323528,-500.0,0.00054794,120]
[331269507,1720169323579,-254.73943892,0.00054794,120]
[331269508,1720169323631,-673.98,0.00054794,120]
[331269509,1720169323680,-500.0,0.00054794,120]
[331269510,1720169323734,-500.0,0.00054794,120]
[331269511,1720169323835,-673.98,0.00054794,120]
[331269512,1720169323920,-500.0,0.00054794,120]
[331269513,1720169323986,-673.98,0.00054794,120]
[331269514,1720169324063,-673.98,0.00054794,120]
[331269515,1720169324132,-500.0,0.00054794,120]
[331269516,1720169324200,-554.65806856,0.00054794,120]
[331269517,1720169324266,-673.98,0.00054794,120]
[331269518,1720169324318,-500.0,0.00054794,120]
[331269519,1720169324368,-673.98,0.00054794,120]
[331269520,1720169324420,-500.0,0.00054794,120]
[331269521,1720169324472,-500.0,0.00054794,120]
[331269522,1720169324522,-674.21147546,0.00054794,120]
[331269523,1720169324573,-500.0,0.00054794,120]
[331269524,1720169324628,-500.0,0.00054794,120]
[331269525,1720169324679,-500.0,0.00054794,120]
[331269526,1720169324931,-500.0,0.00054794,120]
[331269527,1720169325432,-500.0,0.00054794,120]
[331269528,1720169326181,-500.0,0.00054794,120]
[331269529,1720169326925,-500.0,0.00054794,120]
[331269530,1720169328013,-500.0,0.00054794,120]
[331269531,1720169329020,-240.63397302,0.00054794,120]
[331269532,1720169329710,-500.0,0.00054794,120]
[331269533,1720169330191,-500.0,0.00054794,120]
[331269534,1720169330847,-500.0,0.00054794,120]
[331269535,1720169331594,-500.0,0.00054794,120]
[331269536,1720169332525,-500.0,0.00054794,120]
[331269537,1720169333143,-500.0,0.00054794,120]
[331269538,1720169333960,-220.86276632,0.00054794,120]
[331269539,1720169334459,-500.0,0.00054794,120]
[331269540,1720169334511,-219.25770884,0.00054794,120]
[331269541,1720169334880,-500.0,0.00054794,120]
[331269542,1720169335429,-506.06043751,0.00054794,120]
[331269543,1720169335476,-500.0,0.00054794,120]
[331269544,1720169335522,-456.38850082,0.00054794,120]
[331269545,1720169335567,-500.0,0.00054794,120]
[331269546,1720169335611,-500.0,0.00054794,120]
[331269547,1720169335656,-639.51050372,0.00054794,120]
[331269548,1720169335955,-500.0,0.00054794,120]
[331269549,1720169336005,-500.0,0.00054794,120]
[331269550,1720169336054,-249.57368435,0.00054794,120]
[331269551,1720169336098,-500.0,0.00054794,120]
[331269552,1720169336144,-564.54378019,0.00054794,120]
[331269553,1720169336191,-500.0,0.00054794,120]
[331269554,1720169336238,-590.37026426,0.00054794,120]
[331269555,1720169336285,-506.59350141,0.00054794,120]
[331269556,1720169336333,-500.0,0.00054794,120]
[331269557,1720169336382,-500.0,0.00054794,120]
[331269558,1720169336429,-500.0,0.00054794,120]
[331269559,1720169336476,-500.0,0.00054794,120]
[331269560,1720169336525,-500.0,0.00054794,120]
[331269561,1720169336682,-500.0,0.00054794,120]
[331269562,1720169337150,-500.0,0.00054794,120]
[331269563,1720169337621,-500.0,0.00054794,120]
[331269564,1720169338090,-504.04692013,0.00054794,120]
[331269565,1720169338134,-500.0,0.00054794,120]
[331269566,1720169338181,-285.64117747,0.00054794,120]
[331269567,1720169338225,-170.27338812,0.00054794,120]
[331269568,1720169338273,-500.0,0.00054794,120]
[331269569,1720169338318,-641.04644312,0.00054794,120]
[331269570,1720169338363,-500.0,0.00054794,120]
[331269571,1720169338654,-500.0,0.00054794,120]
[331269572,1720169338893,-500.0,0.00054794,120]
[331269573,1720169339355,-500.0,0.00054794,120]
[331269574,1720169339401,-500.0,0.00054794,120]
[331269575,1720169339446,-500.0,0.00054794,120]
[331269576,1720169339491,-500.0,0.00054794,120]
[331269577,1720169339534,-177.41171929,0.00054794,120]
[331269578,1720169339577,-500.0,0.00054794,120]
[331269579,1720169339623,-593.9753804,0.00054794,120]
[331269580,1720169339669,-500.0,0.00054794,120]
[331269581,1720169339712,-500.0,0.00054794,120]
[331269582,1720169339767,-500.0,0.00054794,120]
[331269583,1720169339813,-500.0,0.00054794,120]
[331269584,1720169339860,-568.55824046,0.00054794,120]
[331269585,1720169339906,-500.0,0.00054794,120]
[331269586,1720169339962,-313.11713575,0.00054794,120]
[331269587,1720169340007,-500.0,0.00054794,120]
[331269588,1720169340058,-507.0047914,0.00054794,120]
[331269589,1720169340105,-500.0,0.00054794,120]
[331269590,1720169340152,-500.0,0.00054794,120]
[331269591,1720169340197,-357.97292869,0.00054794,120]
[331269592,1720169340253,-500.0,0.00054794,120]
[331269593,1720169340310,-500.0,0.00054794,120]
[331269594,1720169340359,-495.71718931,0.00054794,120]
[331269595,1720169340406,-500.0,0.00054794,120]
[331269596,1720169340451,-500.0,0.00054794,120]
[331269597,1720169340565,-306.89602654,0.00054794,120]
[331269598,1720169340612,-500.0,0.00054794,120]
[331269599,1720169340658,-500.0,0.00054794,120]
[331269600,1720169340705,-505.53475494,0.00054794,120]
[331269601,1720169340756,-500.0,0.00054794,120]
[331269602,1720169340803,-500.0,0.00054794,120]
[331269603,1720169340849,-500.0,0.00054794,120]
[331269604,1720169341133,-500.0,0.00054794,120]
[331269605,1720169342423,-500.0,0.00054794,120]
[331269606,1720169343567,-500.0,0.00054794,120]
[331269607,1720169344292,-205.31675074,0.00054794,120]
[331269608,1720169344779,-500.0,0.00054794,120]
[331269609,1720169345296,-500.0,0.00054794,120]
[331269610,1720169345779,-500.0,0.00054794,120]
[331269611,1720169346113,-471.45990174,0.00054794,120]
[331269612,1720169346162,-500.0,0.00054794,120]
[331269613,1720169346212,-500.0,0.00054794,120]
[331269614,1720169346265,-500.0,0.00054794,120]
[331269615,1720169346319,-500.0,0.00054794,120]
[331269616,1720169346368,-498.29391063,0.00054794,120]
[331269617,1720169346415,-500.0,0.00054794,120]
[331269618,1720169346461,-500.0,0.00054794,120]
[331269619,1720169346506,-500.0,0.00054794,120]
[331269620,1720169346552,-500.0,0.00054794,120]
[331269621,1720169346595,-556.01476137,0.00054794,120]
[331269622,1720169346640,-500.0,0.00054794,120]
[331269623,1720169346685,-500.0,0.00054794,120]
[331269624,1720169346729,-500.0,0.00054794,120]
[331269625,1720169346783,-462.74251089,0.00054794,120]
[331269626,1720169347284,-500.0,0.00054794,120]
[331269627,1720169347333,-500.0,0.00054794,120]
[331269628,1720169347380,-500.0,0.00054794,120]
[331269629,1720169347430,-500.0,0.00054794,120]
[331269630,1720169347476,-500.0,0.00054794,120]
[331269631,1720169347523,-175.72732562,0.00054794,120]
[331269632,1720169347569,-639.12963467,0.00054794,120]
[331269633,1720169347615,-500.0,0.00054794,120]
[331269634,1720169347661,-500.0,0.00054794,120]
[331269635,1720169347706,-500.0,0.00054794,120]
[331269636,1720169347752,-500.0,0.00054794,120]
[331269637,1720169347800,-500.0,0.00054794,120]
[331269638,1720169347847,-500.0,0.00054794,120]
[331269639,1720169348036,-500.0,0.00054794,120]
[331269640,1720169348084,-500.0,0.00054794,120]
[331269641,1720169348133,-532.33533983,0.00054794,120]
[331269642,1720169348181,-500.0,0.00054794,120]
[331269643,1720169348231,-500.0,0.00054794,120]
[331269644,1720169348278,-500.0,0.00054794,120]
[331269645,1720169348325,-500.0,0.00054794,120]
[331269646,1720169348368,-500.0,0.00054794,120]
[331269647,1720169348425,-508.43270949,0.00054794,120]
[331269648,1720169348476,-500.0,0.00054794,120]
[331269649,1720169348525,-500.0,0.00054794,120]
[331269650,1720169348572,-500.54105767,0.00054794,120]
[331269651,1720169348620,-500.0,0.00054794,120]
[331269652,1720169348669,-500.0,0.00054794,120]
[331269653,1720169348717,-500.0,0.00054794,120]
[331269654,1720169348766,-500.0,0.00054794,120]
[331269655,1720169348822,-500.0,0.00054794,120]
[331269656,1720169348874,-500.0,0.00054794,120]
[331269657,1720169348924,-500.0,0.00054794,120]
[331269658,1720169348974,-500.0,0.00054794,120]
[331269659,1720169349029,-500.0,0.00054794,120]
[331269660,1720169349083,-500.0,0.00054794,30]
[331269661,1720169349134,-500.0,0.00054794,30]
[331269662,1720169349495,-500.0,0.00054794,120]
[331269663,1720169349821,-500.0,0.00054794,30]
[331269664,1720169349871,-372.13823434,0.00054794,120]
[331269665,1720169349920,-500.0,0.00054794,120]
[331269666,1720169349971,-500.0,0.00054794,30]
[331269667,1720169350028,-172.83814082,0.00054794,30]
[331269668,1720169350173,-500.0,0.00054794,120]
[331269669,1720169350662,-409.09343448,0.00054794,120]
[331269670,1720169350708,-500.0,0.00054794,120]
[331269671,1720169350757,-507.06220407,0.00054794,120]
[331269672,1720169350806,-500.0,0.00054794,120]
[331269673,1720169350852,-500.0,0.00054794,120]
[331269674,1720169350896,-510.56054813,0.00054794,120]
[331269675,1720169350990,-500.0,0.00054794,120]
[331269676,1720169351035,-558.22282257,0.00054794,120]
[331269677,1720169351080,-500.0,0.00054794,120]
[331269678,1720169351125,-500.0,0.00054794,120]
[331269679,1720169351331,-500.0,0.00054794,120]
[331269680,1720169351378,-508.27081742,0.00054794,120]
[331269681,1720169351423,-506.90326113,0.00054794,120]
[331269682,1720169351466,-500.0,0.00054794,120]
[331269683,1720169351668,-500.0,0.00054794,120]
[331269684,1720169351978,-500.0,0.00054794,120]
[331269685,1720169352030,-500.0,0.00054794,120]
[331269686,1720169352078,-500.0,0.00054794,120]
[331269687,1720169352125,-243.04754332,0.00054794,120]
[331269688,1720169352172,-500.0,0.00054794,120]
[331269689,1720169352290,-501.55037639,0.00054794,120]
[331269690,1720169352336,-500.0,0.00054794,120]
[331269691,1720169352383,-500.0,0.00054794,120]
[331269692,1720169352428,-500.0,0.00054794,120]